[Event "Titled Tuesday Blitz February 22 Late 2022"]
[White "Goltseva, Ekaterina"]
[Black "Kobo, Ori"]
[WhiteFideId "24173770"]
[BlackFideId "2812320"]
[WhiteElo "2140"]
[BlackElo "2420"]
[Result "0-1"]
[Round "11"]
[TimeControl "180+1"]
[Date "2022.02.22"]
[WhiteClock "0:00:07"]
[BlackClock "0:00:07"]

1. d4 {[%clk 0:02:02]}  Nf6 {[%clk 0:02:59]} 2. c4 {[%clk 0:02:02]}  g6 {[%clk 0:02:59]} 3. Nc3 {[%clk 0:02:02]}  Bg7 {[%clk 0:03:00]} 4. e4 {[%clk 0:02:02]}  d6 {[%clk 0:03:00]} 5. Nge2 {[%clk 0:02:03]}  O-O {[%clk 0:02:57]} 6. Ng3 {[%clk 0:02:03]}  a6 {[%clk 0:02:50]} 7. Be2 {[%clk 0:02:01]}  c6 {[%clk 0:02:47]} 8. O-O {[%clk 0:02:00]}  b5 {[%clk 0:02:46]} 9. cxb5 {[%clk 0:02:00]}  axb5 {[%clk 0:02:45]} 10. Bg5 {[%clk 0:02:00]}  Nbd7 {[%clk 0:02:33]} 11. a3 {[%clk 0:01:57]}  Bb7 {[%clk 0:02:27]} 12. f4 {[%clk 0:01:51]}  Qb6 {[%clk 0:02:27]} 13. Kh1 {[%clk 0:01:50]}  c5 {[%clk 0:02:07]} 14. Nxb5 {[%clk 0:01:36]}  cxd4 {[%clk 0:01:49]} 15. Qxd4 {[%clk 0:01:04]}  Qxd4 {[%clk 0:01:49]} 16. Nxd4 {[%clk 0:01:05]}  Nxe4 {[%clk 0:01:49]} 17. Nxe4 {[%clk 0:01:03]}  Bxe4 {[%clk 0:01:43]} 18. Rad1 {[%clk 0:01:02]}  Rfb8 {[%clk 0:01:25]} 19. Bxe7 {[%clk 0:00:59]}  Rxb2 {[%clk 0:01:25]} 20. Bb5 {[%clk 0:00:50]}  Bxg2+ {[%clk 0:01:12]} 21. Kg1 {[%clk 0:00:49]}  Bxf1 {[%clk 0:01:05]} 22. Bxf1 {[%clk 0:00:47]}  Rxa3 {[%clk 0:00:57]} 23. Bxd6 {[%clk 0:00:43]}  Raa2 {[%clk 0:00:50]} 24. Nc6 {[%clk 0:00:33]}  Rd2 {[%clk 0:00:40]} 25. Ne7+ {[%clk 0:00:31]}  Kh8 {[%clk 0:00:40]} 26. Rxd2 {[%clk 0:00:27]}  Rxd2 {[%clk 0:00:41]} 27. Bb4 {[%clk 0:00:27]}  Bd4+ {[%clk 0:00:35]} 28. Kh1 {[%clk 0:00:26]}  Rf2 {[%clk 0:00:31]} 29. Bc4 {[%clk 0:00:26]}  Rxf4 {[%clk 0:00:30]} 30. Nd5 {[%clk 0:00:26]}  Rf5 {[%clk 0:00:27]} 31. Ne7 {[%clk 0:00:23]}  Rf2 {[%clk 0:00:21]} 32. Nc6 {[%clk 0:00:20]}  Bf6 {[%clk 0:00:18]} 33. Kg1 {[%clk 0:00:19]}  Rf4 {[%clk 0:00:15]} 34. Bxf7 {[%clk 0:00:13]}  Kg7 {[%clk 0:00:13]} 35. Bd5 {[%clk 0:00:13]}  Ne5 {[%clk 0:00:10]} 36. Bd6 {[%clk 0:00:12]}  Rf5 {[%clk 0:00:08]} 37. Nxe5 {[%clk 0:00:04]}  Bxe5 {[%clk 0:00:08]} 38. Bxe5+ {[%clk 0:00:04]}  Rxe5 {[%clk 0:00:09]} 39. Bg2 {[%clk 0:00:04]}  Kf6 {[%clk 0:00:09]} 40. Kf2 {[%clk 0:00:05]}  Kg5 {[%clk 0:00:09]} 41. Kg3 {[%clk 0:00:05]}  Re3+ {[%clk 0:00:09]} 42. Bf3 {[%clk 0:00:06]}  Rc3 {[%clk 0:00:08]} 43. h4+ {[%clk 0:00:05]}  Kf5 {[%clk 0:00:08]} 44. Kg2 {[%clk 0:00:05]}  Kf4 {[%clk 0:00:09]} 45. Bb7 {[%clk 0:00:05]}  Kg4 {[%clk 0:00:07]} 46. h5 {[%clk 0:00:05]}  Kxh5 {[%clk 0:00:07]} 47. Be4 {[%clk 0:00:05]}  Kg4 {[%clk 0:00:07]} 48. Bd5 {[%clk 0:00:05]}  g5 {[%clk 0:00:06]} 49. Be4 {[%clk 0:00:06]}  h5 {[%clk 0:00:06]} 50. Bd5 {[%clk 0:00:07]}  Kf4 {[%clk 0:00:06]} 51. Bc6 {[%clk 0:00:07]}  Rc2+ {[%clk 0:00:07]} 52. Kh1 {[%clk 0:00:07]}  Rxc6 {[%clk 0:00:07]} 0-1


[Site "https://www.chess.com"]

[Event "Titled Tuesday Blitz February 22 Late 2022"]
[White "Golubev, Mikhail"]
[Black "Warakomska, Anna"]
[WhiteFideId "14100983"]
[BlackFideId "1130790"]
[WhiteElo "2374"]
[BlackElo "2062"]
[Result "1-0"]
[Round "11"]
[TimeControl "180+1"]
[Date "2022.02.23"]
[WhiteClock "0:00:24"]
[BlackClock "0:00:03"]

1. e4 {[%clk 0:03:00]}  c5 {[%clk 0:02:59]} 2. Nf3 {[%clk 0:02:57]}  e6 {[%clk 0:02:59]} 3. d4 {[%clk 0:02:57]}  cxd4 {[%clk 0:02:59]} 4. Nxd4 {[%clk 0:02:58]}  Nc6 {[%clk 0:03:00]} 5. Nc3 {[%clk 0:02:58]}  Qc7 {[%clk 0:03:00]} 6. Be3 {[%clk 0:02:58]}  a6 {[%clk 0:03:00]} 7. a3 {[%clk 0:02:58]}  b5 {[%clk 0:02:51]} 8. Nxc6 {[%clk 0:02:57]}  Qxc6 {[%clk 0:02:51]} 9. Bd3 {[%clk 0:02:57]}  Bb7 {[%clk 0:02:51]} 10. O-O {[%clk 0:02:57]}  Qc7 {[%clk 0:02:45]} 11. Qe2 {[%clk 0:02:49]}  Ne7 {[%clk 0:02:37]} 12. f4 {[%clk 0:02:44]}  d6 {[%clk 0:02:09]} 13. f5 {[%clk 0:02:38]}  Nc6 {[%clk 0:01:48]} 14. fxe6 {[%clk 0:02:18]}  fxe6 {[%clk 0:01:48]} 15. Qh5+ {[%clk 0:02:18]}  g6 {[%clk 0:01:45]} 16. Qh3 {[%clk 0:02:18]}  Qe7 {[%clk 0:01:39]} 17. Rae1 {[%clk 0:02:10]}  Ne5 {[%clk 0:01:36]} 18. Ne2 {[%clk 0:02:01]}  O-O-O {[%clk 0:01:25]} 19. Nd4 {[%clk 0:01:43]}  Re8 {[%clk 0:01:23]} 20. a4 {[%clk 0:01:44]}  b4 {[%clk 0:01:02]} 21. Bd2 {[%clk 0:01:30]}  Bg7 {[%clk 0:00:59]} 22. Bxb4 {[%clk 0:01:29]}  h5 {[%clk 0:00:34]} 23. Nb3 {[%clk 0:01:16]}  Ng4 {[%clk 0:00:25]} 24. Bc3 {[%clk 0:01:00]}  Bxc3 {[%clk 0:00:09]} 25. bxc3 {[%clk 0:01:01]}  Rhf8 {[%clk 0:00:06]} 26. Qg3 {[%clk 0:00:53]}  Qc7 {[%clk 0:00:05]} 27. Nd4 {[%clk 0:00:48]}  Qb6 {[%clk 0:00:05]} 28. Kh1 {[%clk 0:00:35]}  e5 {[%clk 0:00:05]} 29. Nf3 {[%clk 0:00:29]}  Qa5 {[%clk 0:00:05]} 30. h3 {[%clk 0:00:26]}  Qxc3 {[%clk 0:00:04]} 31. hxg4 {[%clk 0:00:26]}  hxg4 {[%clk 0:00:05]} 32. Qxg4+ {[%clk 0:00:25]}  Kb8 {[%clk 0:00:05]} 33. Nh2 {[%clk 0:00:24]}  Rh8 {[%clk 0:00:03]} 34. Rb1 {[%clk 0:00:24]}  Qd4 {[%clk 0:00:03]} 35. Qg3 {[%clk 0:00:24]} 1-0


[Site "https://www.chess.com"]

[Event "Titled Tuesday Blitz February 22 Late 2022"]
[White "Goryachkina, Aleksandra"]
[Black "Domingo Nunez, Alejandro"]
[WhiteFideId "4147103"]
[BlackFideId "22245561"]
[WhiteElo "2426"]
[BlackElo "2215"]
[Result "1-0"]
[Round "11"]
[TimeControl "180+1"]
[Date "2022.02.22"]
[WhiteClock "0:00:08"]
[BlackClock "0:00:14"]

1. e4 {[%clk 0:02:59]}  g6 {[%clk 0:02:59]} 2. d4 {[%clk 0:02:58]}  Bg7 {[%clk 0:02:59]} 3. c4 {[%clk 0:02:59]}  d6 {[%clk 0:02:57]} 4. Nc3 {[%clk 0:02:58]}  Nd7 {[%clk 0:02:57]} 5. Be3 {[%clk 0:02:58]}  e5 {[%clk 0:02:57]} 6. d5 {[%clk 0:02:58]}  Ne7 {[%clk 0:02:58]} 7. h4 {[%clk 0:02:51]}  f5 {[%clk 0:02:56]} 8. f3 {[%clk 0:02:33]}  Nf6 {[%clk 0:02:40]} 9. Bd3 {[%clk 0:02:33]}  O-O {[%clk 0:02:40]} 10. Nge2 {[%clk 0:02:30]}  Nh5 {[%clk 0:02:06]} 11. Qc2 {[%clk 0:02:20]}  fxe4 {[%clk 0:02:05]} 12. fxe4 {[%clk 0:01:54]}  Nf4 {[%clk 0:01:57]} 13. O-O-O {[%clk 0:01:33]}  Bg4 {[%clk 0:01:48]} 14. g3 {[%clk 0:01:26]}  Nh5 {[%clk 0:01:12]} 15. Rdf1 {[%clk 0:01:15]}  Bf3 {[%clk 0:00:53]} 16. Rhg1 {[%clk 0:01:15]}  Qd7 {[%clk 0:00:53]} 17. Qd2 {[%clk 0:01:08]}  Rf7 {[%clk 0:00:46]} 18. Kb1 {[%clk 0:00:41]}  Raf8 {[%clk 0:00:45]} 19. Nc1 {[%clk 0:00:39]}  Qh3 {[%clk 0:00:43]} 20. Rf2 {[%clk 0:00:32]}  Nc8 {[%clk 0:00:21]} 21. g4 {[%clk 0:00:28]}  Bxg4 {[%clk 0:00:19]} 22. Rh2 {[%clk 0:00:28]}  Qf3 {[%clk 0:00:20]} 23. Be2 {[%clk 0:00:24]}  Qf6 {[%clk 0:00:12]} 24. Bxg4 {[%clk 0:00:24]}  Nf4 {[%clk 0:00:13]} 25. Bxf4 {[%clk 0:00:25]}  exf4 {[%clk 0:00:13]} 26. Be6 {[%clk 0:00:25]}  Nb6 {[%clk 0:00:12]} 27. Qd3 {[%clk 0:00:21]}  Kh8 {[%clk 0:00:12]} 28. Bxf7 {[%clk 0:00:19]}  Rxf7 {[%clk 0:00:13]} 29. Rf1 {[%clk 0:00:15]}  Nd7 {[%clk 0:00:12]} 30. N1e2 {[%clk 0:00:14]}  Nc5 {[%clk 0:00:11]} 31. Qf3 {[%clk 0:00:12]}  Bh6 {[%clk 0:00:10]} 32. Nc1 {[%clk 0:00:08]}  Qd4 {[%clk 0:00:10]} 33. Nb3 {[%clk 0:00:06]}  Qxc4 {[%clk 0:00:10]} 34. Nxc5 {[%clk 0:00:06]}  Qxc5 {[%clk 0:00:10]} 35. Re1 {[%clk 0:00:05]}  Qd4 {[%clk 0:00:10]} 36. Rhe2 {[%clk 0:00:04]}  Bg7 {[%clk 0:00:09]} 37. e5 {[%clk 0:00:03]}  Bxe5 {[%clk 0:00:10]} 38. Re4 {[%clk 0:00:03]}  Qc5 {[%clk 0:00:09]} 39. Rxe5 {[%clk 0:00:02]}  dxe5 {[%clk 0:00:10]} 40. Rxe5 {[%clk 0:00:03]}  Qg1+ {[%clk 0:00:10]} 41. Kc2 {[%clk 0:00:02]}  Qh2+ {[%clk 0:00:11]} 42. Re2 {[%clk 0:00:02]}  Qxh4 {[%clk 0:00:11]} 43. Kb3 {[%clk 0:00:02]}  Kg7 {[%clk 0:00:12]} 44. d6 {[%clk 0:00:01]}  cxd6 {[%clk 0:00:12]} 45. Nd5 {[%clk 0:00:02]}  Qg5 {[%clk 0:00:12]} 46. Qc3+ {[%clk 0:00:02]}  Kg8 {[%clk 0:00:02]} 47. Re8+ {[%clk 0:00:02]}  Rf8 {[%clk 0:00:03]} 48. Nf6+ {[%clk 0:00:02]}  Kf7 {[%clk 0:00:03]} 49. Rxf8+ {[%clk 0:00:02]}  Kxf8 {[%clk 0:00:04]} 50. Nxh7+ {[%clk 0:00:02]}  Ke7 {[%clk 0:00:04]} 51. Nxg5 {[%clk 0:00:03]}  Kd7 {[%clk 0:00:05]} 52. Nf3 {[%clk 0:00:04]}  Ke6 {[%clk 0:00:04]} 53. Qd4 {[%clk 0:00:04]}  Kf5 {[%clk 0:00:05]} 54. Qd5+ {[%clk 0:00:05]}  Kg4 {[%clk 0:00:06]} 55. Kc4 {[%clk 0:00:04]}  g5 {[%clk 0:00:06]} 56. Qe4 {[%clk 0:00:05]}  Kg3 {[%clk 0:00:06]} 57. Nxg5 {[%clk 0:00:05]}  Kg4 {[%clk 0:00:06]} 58. Nf3 {[%clk 0:00:05]}  b5+ {[%clk 0:00:07]} 59. Kxb5 {[%clk 0:00:05]}  d5 {[%clk 0:00:07]} 60. Qxd5 {[%clk 0:00:05]}  Kg3 {[%clk 0:00:08]} 61. Ka6 {[%clk 0:00:05]}  Kg4 {[%clk 0:00:09]} 62. Kxa7 {[%clk 0:00:05]}  Kg3 {[%clk 0:00:09]} 63. b4 {[%clk 0:00:05]}  Kg4 {[%clk 0:00:10]} 64. b5 {[%clk 0:00:06]}  Kg3 {[%clk 0:00:11]} 65. b6 {[%clk 0:00:07]}  Kg4 {[%clk 0:00:12]} 66. b7 {[%clk 0:00:07]}  Kg3 {[%clk 0:00:13]} 67. b8=Q {[%clk 0:00:08]}  Kg4 {[%clk 0:00:14]} 68. Qbg8+ {[%clk 0:00:08]} 1-0


[Site "https://www.chess.com"]

[Event "Titled Tuesday Blitz February 22 Late 2022"]
[White "Hakemi, Arman"]
[Black "Kamsky, Gata"]
[WhiteFideId "22520805"]
[BlackFideId "2000024"]
[WhiteElo "2208"]
[BlackElo "2645"]
[Result "0-1"]
[Round "11"]
[TimeControl "180+1"]
[Date "2022.02.22"]
[WhiteClock "0:00:02"]
[BlackClock "0:00:22"]

1. e4 {[%clk 0:03:00]}  c5 {[%clk 0:02:55]} 2. Nf3 {[%clk 0:03:00]}  e6 {[%clk 0:02:55]} 3. c3 {[%clk 0:03:00]}  Nf6 {[%clk 0:02:54]} 4. e5 {[%clk 0:02:59]}  Nd5 {[%clk 0:02:54]} 5. g3 {[%clk 0:02:59]}  Nc6 {[%clk 0:02:52]} 6. Bg2 {[%clk 0:02:55]}  d6 {[%clk 0:02:52]} 7. exd6 {[%clk 0:02:56]}  Bxd6 {[%clk 0:02:52]} 8. O-O {[%clk 0:02:56]}  O-O {[%clk 0:02:50]} 9. d4 {[%clk 0:02:37]}  Bd7 {[%clk 0:02:44]} 10. c4 {[%clk 0:01:54]}  Nf6 {[%clk 0:02:43]} 11. Nc3 {[%clk 0:01:53]}  cxd4 {[%clk 0:02:40]} 12. Nxd4 {[%clk 0:01:54]}  Nxd4 {[%clk 0:02:35]} 13. Qxd4 {[%clk 0:01:54]}  Bc6 {[%clk 0:02:35]} 14. Bxc6 {[%clk 0:01:54]}  bxc6 {[%clk 0:02:35]} 15. Rd1 {[%clk 0:01:53]}  Be7 {[%clk 0:02:22]} 16. Qxd8 {[%clk 0:01:47]}  Rfxd8 {[%clk 0:02:21]} 17. Bg5 {[%clk 0:01:46]}  h6 {[%clk 0:02:18]} 18. Be3 {[%clk 0:01:15]}  c5 {[%clk 0:01:59]} 19. Na4 {[%clk 0:01:10]}  Rxd1+ {[%clk 0:01:52]} 20. Rxd1 {[%clk 0:01:11]}  Rc8 {[%clk 0:01:52]} 21. b3 {[%clk 0:01:08]}  Kf8 {[%clk 0:01:52]} 22. f3 {[%clk 0:01:04]}  Ke8 {[%clk 0:01:51]} 23. Kf2 {[%clk 0:01:04]}  Nd7 {[%clk 0:01:51]} 24. Nc3 {[%clk 0:01:05]}  a6 {[%clk 0:01:47]} 25. f4 {[%clk 0:01:00]}  f5 {[%clk 0:01:46]} 26. Re1 {[%clk 0:00:50]}  Rc6 {[%clk 0:01:45]} 27. Bc1 {[%clk 0:00:46]}  Nb6 {[%clk 0:01:42]} 28. Bb2 {[%clk 0:00:40]}  Bf6 {[%clk 0:01:40]} 29. Nd1 {[%clk 0:00:40]}  Kf7 {[%clk 0:01:37]} 30. Bxf6 {[%clk 0:00:40]}  Kxf6 {[%clk 0:01:37]} 31. Nb2 {[%clk 0:00:41]}  Rd6 {[%clk 0:01:31]} 32. Rd1 {[%clk 0:00:40]}  Rxd1 {[%clk 0:01:30]} 33. Nxd1 {[%clk 0:00:41]}  e5 {[%clk 0:01:30]} 34. fxe5+ {[%clk 0:00:39]}  Kxe5 {[%clk 0:01:29]} 35. Ke3 {[%clk 0:00:40]}  g5 {[%clk 0:01:24]} 36. Nf2 {[%clk 0:00:40]}  a5 {[%clk 0:01:23]} 37. Nd3+ {[%clk 0:00:40]}  Kd6 {[%clk 0:01:24]} 38. h4 {[%clk 0:00:39]}  Nd7 {[%clk 0:01:23]} 39. a3 {[%clk 0:00:37]}  Ne5 {[%clk 0:01:21]} 40. Nf2 {[%clk 0:00:30]}  a4 {[%clk 0:01:16]} 41. bxa4 {[%clk 0:00:27]}  Nxc4+ {[%clk 0:01:16]} 42. Kd3 {[%clk 0:00:27]}  Ne5+ {[%clk 0:01:16]} 43. Kc3 {[%clk 0:00:25]}  gxh4 {[%clk 0:01:15]} 44. gxh4 {[%clk 0:00:26]}  f4 {[%clk 0:01:13]} 45. a5 {[%clk 0:00:25]}  Kc6 {[%clk 0:01:13]} 46. a4 {[%clk 0:00:22]}  Kb7 {[%clk 0:01:10]} 47. Ne4 {[%clk 0:00:23]}  Nd7 {[%clk 0:00:40]} 48. Kd3 {[%clk 0:00:17]}  Ka6 {[%clk 0:00:35]} 49. Ke2 {[%clk 0:00:16]}  c4 {[%clk 0:00:34]} 50. Kf3 {[%clk 0:00:15]}  Kxa5 {[%clk 0:00:32]} 51. Kxf4 {[%clk 0:00:13]}  Kxa4 {[%clk 0:00:32]} 52. Kf5 {[%clk 0:00:08]}  Kb4 {[%clk 0:00:32]} 53. Kg6 {[%clk 0:00:07]}  Nc5 {[%clk 0:00:32]} 54. Nf6 {[%clk 0:00:05]}  Kc3 {[%clk 0:00:27]} 55. Kxh6 {[%clk 0:00:04]}  Kd4 {[%clk 0:00:27]} 56. Kg6 {[%clk 0:00:02]}  c3 {[%clk 0:00:27]} 57. h5 {[%clk 0:00:03]}  c2 {[%clk 0:00:22]} 58. h6 {[%clk 0:00:03]}  Ne6 {[%clk 0:00:21]} 59. h7 {[%clk 0:00:04]}  Nf8+ {[%clk 0:00:21]} 60. Kf7 {[%clk 0:00:01]}  Nxh7 {[%clk 0:00:22]} 61. Nxh7 {[%clk 0:00:02]}  c1=Q {[%clk 0:00:22]} 0-1


[Site "https://www.chess.com"]

[Event "Titled Tuesday Blitz February 22 Late 2022"]
[White "Hambleton, Aman"]
[Black "Pichot, Alan"]
[WhiteFideId "2606577"]
[BlackFideId "110973"]
[WhiteElo "2552"]
[BlackElo "2543"]
[Result "0-1"]
[Round "11"]
[TimeControl "180+1"]
[Date "2022.02.22"]
[WhiteClock "0:00:02"]
[BlackClock "0:00:24"]

1. d4 {[%clk 0:03:00]}  Nf6 {[%clk 0:02:59]} 2. c4 {[%clk 0:02:55]}  e6 {[%clk 0:03:00]} 3. Nc3 {[%clk 0:02:53]}  Bb4 {[%clk 0:03:00]} 4. Qc2 {[%clk 0:02:50]}  O-O {[%clk 0:02:59]} 5. Nf3 {[%clk 0:02:47]}  d5 {[%clk 0:02:56]} 6. cxd5 {[%clk 0:02:39]}  exd5 {[%clk 0:02:56]} 7. Bg5 {[%clk 0:02:28]}  h6 {[%clk 0:02:55]} 8. Bh4 {[%clk 0:02:23]}  c5 {[%clk 0:02:45]} 9. e3 {[%clk 0:02:15]}  Nc6 {[%clk 0:02:44]} 10. dxc5 {[%clk 0:02:08]}  d4 {[%clk 0:02:37]} 11. O-O-O {[%clk 0:01:47]}  Bg4 {[%clk 0:01:55]} 12. Bc4 {[%clk 0:00:44]}  Bxc5 {[%clk 0:01:42]} 13. Bxf6 {[%clk 0:00:42]}  Qxf6 {[%clk 0:01:32]} 14. Ne4 {[%clk 0:00:41]}  Qe7 {[%clk 0:01:32]} 15. Nxc5 {[%clk 0:00:40]}  Nb4 {[%clk 0:01:33]} 16. Qe4 {[%clk 0:00:08]}  Qxc5 {[%clk 0:01:33]} 17. Qxd4 {[%clk 0:00:09]}  Qc8 {[%clk 0:01:22]} 18. Kb1 {[%clk 0:00:06]}  a5 {[%clk 0:00:46]} 19. e4 {[%clk 0:00:04]}  b5 {[%clk 0:00:36]} 20. Bd3 {[%clk 0:00:02]}  Rd8 {[%clk 0:00:34]} 21. Qe3 {[%clk 0:00:03]}  Rxd3 {[%clk 0:00:34]} 22. Rxd3 {[%clk 0:00:03]}  Qc2+ {[%clk 0:00:34]} 23. Ka1 {[%clk 0:00:03]}  Nxd3 {[%clk 0:00:35]} 24. Rb1 {[%clk 0:00:01]}  Bxf3 {[%clk 0:00:30]} 25. gxf3 {[%clk 0:00:01]}  Rc8 {[%clk 0:00:30]} 26. a3 {[%clk 0:00:01]}  b4 {[%clk 0:00:30]} 27. Qd4 {[%clk 0:00:01]}  b3 {[%clk 0:00:24]} 28. f4 {[%clk 0:00:01]}  Qxb1+ {[%clk 0:00:23]} 29. Kxb1 {[%clk 0:00:02]}  Rc1# {[%clk 0:00:24]} 0-1


[Site "https://www.chess.com"]

[Event "Titled Tuesday Blitz February 22 Late 2022"]
[White "Iskusnyh, Sergei"]
[Black "Avramidou, Anastasia"]
[WhiteFideId "4120027"]
[BlackFideId "4239873"]
[WhiteElo "2492"]
[BlackElo "2183"]
[Result "1-0"]
[Round "11"]
[TimeControl "180+1"]
[Date "2022.02.22"]
[WhiteClock "0:00:06"]
[BlackClock "0:00:03"]

1. d4 {[%clk 0:03:00]}  Nf6 {[%clk 0:02:54]} 2. c4 {[%clk 0:02:59]}  g6 {[%clk 0:02:53]} 3. g3 {[%clk 0:02:59]}  Bg7 {[%clk 0:02:54]} 4. Bg2 {[%clk 0:02:59]}  O-O {[%clk 0:02:54]} 5. Nc3 {[%clk 0:03:00]}  c5 {[%clk 0:02:54]} 6. dxc5 {[%clk 0:02:54]}  Na6 {[%clk 0:02:54]} 7. Nf3 {[%clk 0:02:49]}  Nxc5 {[%clk 0:02:52]} 8. O-O {[%clk 0:02:50]}  b6 {[%clk 0:02:50]} 9. Bg5 {[%clk 0:02:27]}  Bb7 {[%clk 0:02:44]} 10. Rc1 {[%clk 0:02:20]}  Rc8 {[%clk 0:02:43]} 11. b3 {[%clk 0:02:06]}  h6 {[%clk 0:02:37]} 12. Be3 {[%clk 0:02:03]}  Qc7 {[%clk 0:02:25]} 13. Bd4 {[%clk 0:01:55]}  Qb8 {[%clk 0:02:10]} 14. Ne1 {[%clk 0:01:42]}  Bxg2 {[%clk 0:02:09]} 15. Nxg2 {[%clk 0:01:42]}  Rfd8 {[%clk 0:02:07]} 16. Bxf6 {[%clk 0:01:40]}  Bxf6 {[%clk 0:02:03]} 17. Nd5 {[%clk 0:01:40]}  Qe5 {[%clk 0:01:53]} 18. Ngf4 {[%clk 0:01:28]}  Bg7 {[%clk 0:01:48]} 19. Rc3 {[%clk 0:01:14]}  Bf8 {[%clk 0:01:26]} 20. Re3 {[%clk 0:01:11]}  Qd6 {[%clk 0:01:25]} 21. Qa1 {[%clk 0:00:56]}  Ne6 {[%clk 0:00:44]} 22. Rd1 {[%clk 0:00:54]}  Qc5 {[%clk 0:00:41]} 23. a4 {[%clk 0:00:39]}  Nxf4 {[%clk 0:00:37]} 24. Nxf4 {[%clk 0:00:37]}  e6 {[%clk 0:00:34]} 25. Red3 {[%clk 0:00:35]}  Bg7 {[%clk 0:00:35]} 26. Qb1 {[%clk 0:00:34]}  d6 {[%clk 0:00:33]} 27. e3 {[%clk 0:00:30]}  a6 {[%clk 0:00:32]} 28. Ne2 {[%clk 0:00:27]}  Rb8 {[%clk 0:00:28]} 29. Nd4 {[%clk 0:00:27]}  Bxd4 {[%clk 0:00:24]} 30. Rxd4 {[%clk 0:00:24]}  b5 {[%clk 0:00:24]} 31. cxb5 {[%clk 0:00:24]}  axb5 {[%clk 0:00:25]} 32. b4 {[%clk 0:00:25]}  Qc6 {[%clk 0:00:18]} 33. a5 {[%clk 0:00:25]}  d5 {[%clk 0:00:19]} 34. e4 {[%clk 0:00:24]}  Rbc8 {[%clk 0:00:10]} 35. exd5 {[%clk 0:00:24]}  Rxd5 {[%clk 0:00:09]} 36. Rxd5 {[%clk 0:00:23]}  exd5 {[%clk 0:00:10]} 37. Qd3 {[%clk 0:00:23]}  Qc4 {[%clk 0:00:08]} 38. Qd4 {[%clk 0:00:20]}  h5 {[%clk 0:00:06]} 39. h4 {[%clk 0:00:18]}  Re8 {[%clk 0:00:05]} 40. Kg2 {[%clk 0:00:16]}  Qa2 {[%clk 0:00:05]} 41. Qxd5 {[%clk 0:00:14]}  Qa4 {[%clk 0:00:06]} 42. Qd4 {[%clk 0:00:11]}  Re2 {[%clk 0:00:06]} 43. Rd2 {[%clk 0:00:10]}  Re1 {[%clk 0:00:06]} 44. Qd8+ {[%clk 0:00:09]}  Kh7 {[%clk 0:00:06]} 45. Qf6 {[%clk 0:00:09]}  Qa2 {[%clk 0:00:04]} 46. Rd8 {[%clk 0:00:07]}  Re8 {[%clk 0:00:01]} 47. Rxe8 {[%clk 0:00:06]}  Qd5+ {[%clk 0:00:02]} 48. Kh2 {[%clk 0:00:06]}  Qd4 {[%clk 0:00:03]} 49. Rh8# {[%clk 0:00:06]} 1-0


[Site "https://www.chess.com"]

[Event "Titled Tuesday Blitz February 22 Late 2022"]
[White "Jaferian, Koosha"]
[Black "Myers, Dominique"]
[WhiteFideId "12507440"]
[BlackFideId "2041715"]
[WhiteElo "2027"]
[BlackElo "1986"]
[Result "0-1"]
[Round "11"]
[TimeControl "180+1"]
[Date "2022.02.23"]
[WhiteClock "0:00:59"]
[BlackClock "0:00:24"]

1. e4 {[%clk 0:03:00]}  e5 {[%clk 0:02:51]} 2. Nf3 {[%clk 0:03:00]}  Nc6 {[%clk 0:02:51]} 3. d4 {[%clk 0:03:01]}  exd4 {[%clk 0:02:45]} 4. Nxd4 {[%clk 0:03:02]}  Qh4 {[%clk 0:02:44]} 5. Nc3 {[%clk 0:03:00]}  Bb4 {[%clk 0:02:43]} 6. Nb5 {[%clk 0:03:01]}  Nf6 {[%clk 0:02:41]} 7. Nxc7+ {[%clk 0:02:58]}  Kd8 {[%clk 0:02:38]} 8. Nxa8 {[%clk 0:02:59]}  Nxe4 {[%clk 0:02:33]} 9. Qf3 {[%clk 0:02:49]}  Re8 {[%clk 0:02:33]} 10. Be2 {[%clk 0:02:44]}  Nxc3 {[%clk 0:02:26]} 11. bxc3 {[%clk 0:02:45]}  Nd4 {[%clk 0:02:26]} 12. Qg3 {[%clk 0:02:29]}  Rxe2+ {[%clk 0:01:54]} 13. Kf1 {[%clk 0:02:30]}  Qxg3 {[%clk 0:01:54]} 14. hxg3 {[%clk 0:02:11]}  Bxc3 {[%clk 0:01:53]} 15. Bg5+ {[%clk 0:02:12]}  f6 {[%clk 0:01:52]} 16. Be3 {[%clk 0:02:01]}  Bxa1 {[%clk 0:01:28]} 17. Bxd4 {[%clk 0:02:01]}  Rxc2 {[%clk 0:01:25]} 18. Be3 {[%clk 0:01:52]}  h6 {[%clk 0:01:19]} 19. Rh4 {[%clk 0:01:46]}  b6 {[%clk 0:01:18]} 20. Ra4 {[%clk 0:01:43]}  Bb7 {[%clk 0:00:55]} 21. Rxa7 {[%clk 0:01:43]}  Bc6 {[%clk 0:00:50]} 22. Nxb6 {[%clk 0:01:35]}  g5 {[%clk 0:00:37]} 23. Kg1 {[%clk 0:01:29]}  Ke7 {[%clk 0:00:31]} 24. a4 {[%clk 0:01:20]}  h5 {[%clk 0:00:31]} 25. Kh2 {[%clk 0:01:16]}  Be5 {[%clk 0:00:30]} 26. Ra5 {[%clk 0:01:09]}  h4 {[%clk 0:00:29]} 27. Bxg5 {[%clk 0:01:04]}  hxg3+ {[%clk 0:00:28]} 28. fxg3 {[%clk 0:00:58]}  Rxg2+ {[%clk 0:00:27]} 29. Kh1 {[%clk 0:00:56]}  Rxg3+ {[%clk 0:00:25]} 30. Nd5+ {[%clk 0:00:57]}  Bxd5+ {[%clk 0:00:24]} 31. Rxd5 {[%clk 0:00:58]}  Rxg5 {[%clk 0:00:24]} 32. a5 {[%clk 0:00:58]}  Rh5+ {[%clk 0:00:24]} 33. Kg2 {[%clk 0:00:58]}  Rh2+ {[%clk 0:00:24]} 34. Kg1 {[%clk 0:00:59]}  Ra2 {[%clk 0:00:25]} 35. Rb5 {[%clk 0:00:58]}  Ke6 {[%clk 0:00:24]} 36. Rb6+ {[%clk 0:00:58]}  d6 {[%clk 0:00:24]} 37. a6 {[%clk 0:00:59]}  Bd4+ {[%clk 0:00:24]} 0-1


[Site "https://www.chess.com"]

[Event "Titled Tuesday Blitz February 22 Late 2022"]
[White "Jarocka, Liwia"]
[Black "Escudero Donoso, Felipe"]
[WhiteFideId "21807558"]
[BlackFideId "3410595"]
[WhiteElo "1896"]
[BlackElo "2184"]
[Result "0-1"]
[Round "11"]
[TimeControl "180+1"]
[Date "2022.02.23"]
[WhiteClock "0:00:36"]
[BlackClock "0:00:33"]

1. d4 {[%clk 0:03:00]}  Nf6 {[%clk 0:02:59]} 2. Bf4 {[%clk 0:03:00]}  d5 {[%clk 0:02:59]} 3. e3 {[%clk 0:03:00]}  c5 {[%clk 0:02:59]} 4. Nd2 {[%clk 0:02:58]}  Nc6 {[%clk 0:02:59]} 5. c3 {[%clk 0:02:58]}  Bf5 {[%clk 0:02:44]} 6. h3 {[%clk 0:02:38]}  e6 {[%clk 0:02:42]} 7. Bb5 {[%clk 0:02:37]}  Be7 {[%clk 0:02:29]} 8. Ngf3 {[%clk 0:02:36]}  h6 {[%clk 0:02:24]} 9. O-O {[%clk 0:02:36]}  O-O {[%clk 0:02:24]} 10. Bxc6 {[%clk 0:02:35]}  bxc6 {[%clk 0:02:24]} 11. Ne5 {[%clk 0:02:35]}  Qb6 {[%clk 0:02:19]} 12. dxc5 {[%clk 0:02:30]}  Bxc5 {[%clk 0:02:17]} 13. Nb3 {[%clk 0:02:28]}  Be7 {[%clk 0:02:08]} 14. Rc1 {[%clk 0:02:19]}  Bh7 {[%clk 0:02:01]} 15. c4 {[%clk 0:02:18]}  Rfd8 {[%clk 0:01:54]} 16. c5 {[%clk 0:02:15]}  Qa6 {[%clk 0:01:46]} 17. Nd4 {[%clk 0:02:07]}  Rdc8 {[%clk 0:01:40]} 18. a3 {[%clk 0:02:01]}  Qb7 {[%clk 0:01:33]} 19. b4 {[%clk 0:01:59]}  a5 {[%clk 0:01:30]} 20. Qb3 {[%clk 0:01:48]}  axb4 {[%clk 0:01:27]} 21. axb4 {[%clk 0:01:49]}  Ne4 {[%clk 0:01:15]} 22. Rfd1 {[%clk 0:01:36]}  f6 {[%clk 0:01:14]} 23. Nxe6 {[%clk 0:01:28]}  fxe5 {[%clk 0:01:05]} 24. Bxe5 {[%clk 0:01:29]}  Bf6 {[%clk 0:01:03]} 25. Bxf6 {[%clk 0:01:27]}  Nxf6 {[%clk 0:01:03]} 26. Nf4 {[%clk 0:01:22]}  Rab8 {[%clk 0:01:01]} 27. Rd4 {[%clk 0:01:20]}  Re8 {[%clk 0:00:59]} 28. Qa4 {[%clk 0:01:14]}  Qb5 {[%clk 0:00:58]} 29. Qa7 {[%clk 0:01:12]}  Rb7 {[%clk 0:00:57]} 30. Qa2 {[%clk 0:01:11]}  Kh8 {[%clk 0:00:51]} 31. Ra1 {[%clk 0:01:09]}  Ne4 {[%clk 0:00:48]} 32. Qa3 {[%clk 0:00:44]}  g5 {[%clk 0:00:37]} 33. Nh5 {[%clk 0:00:39]}  Bg6 {[%clk 0:00:34]} 34. Nf6 {[%clk 0:00:36]}  Nxf6 {[%clk 0:00:33]} 0-1


[Site "https://www.chess.com"]